bitfinex-derivatives/quotes_ETHF0:USTF0_20250701
["timestamp","ask_amount","ask_price","bid_price","bid_amount"]
[1751399480551,0.82826,2414.5,2414.4,11.874]
[1751399480753,0.82818,2414.7,2414.4,40.47147887]
[1751399481060,1.52968,2414.7,2414.6,0.82815]
[1751399481353,0.7015,2414.7,2414.6,0.82815]
[1751399481556,1.52965,2414.7,2414.6,0.82815]
[1751399482057,0.82819,2414.6,2414.5,3.89467887]
[1751399482657,0.7015,2414.7,2414.6,0.82819]
[1751399482658,1.52968,2414.7,2414.6,0.82819]
[1751399484655,0.7015,2414.7,2414.6,0.82819]
[1751399484857,0.82811,2414.9,2414.8,0.82812]
[1751399485256,0.82811,2414.9,2414.7,3.06647887]
[1751399485454,0.82812,2414.8,2414.7,3.06647887]
[1751399486453,0.82812,2414.8,2414.7,0.82813]
[1751399486958,0.82819,2414.6,2414.5,3.06647887]
[1751399487164,0.82819,2414.6,2414.5,0.82822]
[1751399489063,0.82819,2414.6,2414.4,11.875]
[1751399489064,0.82822,2414.5,2414.4,41.29771887]
[1751399489262,0.6926,2414.5,2414.4,41.29771887]
[1751399489663,1.52082,2414.5,2414.4,41.29771887]
[1751399490964,0.82821,2414.6,2414.5,0.82822]
[1751399491665,1.52078,2414.7,2414.6,0.82819]
[1751399493056,1.8371847,2415.0,2414.7,0.8281]
[1751399493365,0.82814,2414.8,2414.7,0.8281]
[1751399493766,0.8282,2414.7,2414.6,0.82816]
[1751399495159,0.82819,2414.6,2414.5,3.89467887]
[1751399495363,0.82818,2414.7,2414.6,0.82814]
[1751399496462,0.82819,2414.6,2414.5,3.89467887]
[1751399496768,2.07054,2414.6,2414.2,59.631]
[1751399496969,0.82829,2414.3,2414.2,59.631]
[1751399497268,0.82829,2414.3,2414.2,60.45932]
[1751399497469,0.82829,2414.3,2414.2,59.631]
[1751399497766,0.82832,2414.2,2414.1,12.69034]
[1751399497963,0.82832,2414.2,2414.1,11.862]
[1751399498566,0.82842,2414.0,2413.9,0.82839]
[1751399499366,0.82846,2413.9,2413.8,0.82844]
[1751399500068,0.82842,2414.0,2413.9,0.82839]
[1751399501168,1.54678,2414.1,2414.0,0.82839]
[1751399501369,2.07039,2414.7,2414.1,2.07087]
[1751399501566,0.693,2414.5,2414.4,3.89470887]
[1751399501766,1.52122,2414.5,2414.4,3.89470887]
[1751399502370,1.73567958,2414.5,2414.4,3.89470887]
[1751399502767,2.47778693,2415.0,2414.4,3.06647887]
[1751399502972,0.82812,2414.8,2414.7,3.06647887]
[1751399503467,0.82815,2414.7,2414.6,0.82816]
[1751399503872,0.82815,2414.8,2414.7,0.82813]
[1751399505376,1.52107,2415.0,2414.9,0.82808]
[1751399505770,0.82808,2414.9,2414.8,2.8985]
[1751399506472,0.82812,2414.8,2414.7,11.863]
[1751399506676,0.82812,2414.9,2414.8,0.8281]
[1751399507577,0.82812,2414.8,2414.7,12.69113]
[1751399507881,0.82803,2415.1,2415.0,0.82802]
[1751399508170,1.50281,2415.2,2415.1,0.82802]
[1751399508369,0.82801,2415.2,2415.1,0.82802]
[1751399508569,0.82805,2415.1,2415.0,0.82803]
[1751399508769,0.82799,2415.2,2415.1,0.82798]
[1751399509675,1.55217,2415.3,2415.2,0.82798]
[1751399509868,1.55215,2415.3,2415.2,0.82798]
[1751399510273,0.7242,2415.3,2415.2,0.82798]
[1751399510577,0.82794,2415.4,2415.3,0.82795]
[1751399510770,1.5541,2415.5,2415.4,0.82791]
[1751399510976,0.8279,2415.5,2415.4,0.82791]
[1751399511777,0.82786,2415.6,2415.5,0.82784]
[1751399511977,0.82791,2415.5,2415.4,0.82789]
[1751399512576,0.82787,2415.6,2415.5,0.82785]
[1751399513775,0.82791,2415.5,2415.4,0.82788]
[1751399514979,1.865079,2415.5,2415.4,0.82788]
[1751399515176,0.82791,2415.5,2415.4,0.82788]
[1751399516082,0.82787,2415.6,2415.5,0.82784]
[1751399516277,0.82791,2415.5,2415.3,1.3271]
[1751399516581,0.82799,2415.3,2415.2,12.68895]
[1751399517776,0.82799,2415.3,2415.2,12.68898]
[1751399519484,0.82799,2415.3,2415.2,11.861]
[1751399519683,0.82799,2415.3,2415.2,12.68898]
[1751399522587,0.82788,2415.6,2415.5,0.82784]
[1751399522785,1.85287704,2415.6,2415.5,0.82784]
[1751399522986,0.82788,2415.5,2415.4,0.7046]
[1751399523186,1.85287704,2415.5,2415.4,0.7046]
[1751399523688,1.85287704,2415.5,2415.4,1.53251]
[1751399524488,1.85287704,2415.5,2415.4,0.7046]
[1751399524890,1.85287704,2415.5,2415.4,0.82791]
[1751399528590,0.82795,2415.4,2415.3,0.82792]
[1751399530189,0.82795,2415.3,2415.2,40.42402735]
[1751399530394,1.50535,2415.3,2415.2,38.17998]
[1751399530592,0.6774,2415.3,2415.2,38.17998]
[1751399531295,1.50532,2415.5,2415.4,0.82791]
[1751399531490,2.53151338,2415.5,2415.4,0.82791]
[1751399532788,0.82795,2415.4,2415.3,0.82791]
[1751399532986,0.82795,2415.3,2415.2,39.56215]
[1751399533295,0.82795,2415.3,2415.2,38.17995]
[1751399533494,0.82795,2415.3,2415.2,38.15495]
[1751399533690,0.82802,2415.2,2415.1,11.846]
[1751399533891,0.82802,2415.2,2415.1,37.327]
[1751399534091,0.82802,2415.2,2415.1,12.67402]
[1751399534391,0.82802,2415.2,2415.1,38.15402]
[1751399534590,1.85521801,2415.2,2415.1,38.15402]
[1751399534786,1.85521801,2415.2,2414.9,2.7766]
[1751399534787,0.82805,2415.0,2414.9,0.82804]
[1751399534987,0.82812,2414.8,2414.7,38.15314]
[1751399535188,0.82808,2415.0,2414.9,0.82805]
[1751399535390,1.85569615,2415.0,2414.9,0.82805]
[1751399535794,0.6591,2415.1,2415.0,0.82805]
[1751399535998,0.82797,2415.3,2415.2,0.82794]
[1751399536486,1.85551836,2415.3,2415.2,0.82794]
[1751399536695,0.82802,2415.2,2415.1,0.828]
[1751399536893,1.85556836,2415.2,2415.1,0.828]
[1751399537995,1.02754836,2415.2,2415.1,0.828]
[1751399538298,1.85552836,2415.2,2415.1,3.90002735]
[1751399541605,1.02754836,2415.2,2414.7,11.846]
[1751399541802,0.82812,2414.8,2414.7,11.846]
[1751399542399,0.82812,2414.8,2414.7,12.67415]
[1751399542800,0.82812,2414.8,2414.7,11.846]
[1751399543101,1.85680685,2414.8,2414.7,11.846]
[1751399543505,0.82815,2414.7,2414.6,26.30117]
[1751399543692,1.48625,2414.7,2414.6,11.846]
[1751399543893,2.5147325,2414.7,2414.6,11.846]
[1751399544399,1.6865825,2414.7,2414.6,12.67419]
[1751399544700,1.48625,2414.7,2414.6,12.67419]
[1751399545104,0.6978,2415.0,2414.8,0.82809]
[1751399545304,1.02823474,2414.9,2414.8,0.82809]
[1751399545509,1.85635474,2414.9,2414.8,0.82809]
[1751399545804,0.82812,2414.8,2414.7,3.90015735]
[1751399545998,1.85635474,2414.8,2414.7,3.90015735]
[1751399547700,1.85635474,2414.8,2414.7,0.82813]
[1751399547904,0.82815,2414.7,2414.6,37.318]
[1751399548105,1.54255,2414.7,2414.6,37.318]
[1751399548306,1.54255,2414.7,2414.6,38.14619]
[1751399548905,1.54255,2414.7,2414.6,37.318]
[1751399549106,1.54255,2414.7,2414.6,38.14619]
[1751399549302,2.57162408,2414.7,2414.6,38.14619]
[1751399550008,2.57162408,2414.7,2414.6,12.67419]
[1751399552707,1.74347408,2414.7,2414.6,12.67419]
[1751399553102,2.57162408,2414.7,2414.6,12.67419]
[1751399553603,1.74347408,2414.7,2414.6,12.67419]
[1751399553810,1.02907408,2414.7,2414.6,12.67419]
[1751399554005,0.82806,2415.0,2414.9,0.82808]
[1751399554006,1.50226,2415.0,2414.9,0.82808]
[1751399554204,2.53088528,2415.0,2414.9,29.36710735]
[1751399555709,2.53088528,2415.0,2414.9,25.467]
[1751399555910,3.93688528,2415.0,2414.9,25.467]
[1751399556111,3.93688528,2415.0,2414.9,26.29508]
[1751399556505,3.93688528,2415.0,2414.9,0.82808]
[1751399558015,2.53088528,2415.0,2414.9,0.82808]
[1751399558213,2.53088528,2415.0,2414.9,3.90010735]
[1751399562718,1.02862528,2415.0,2414.9,3.90010735]
[1751399563413,0.82798,2415.2,2415.1,0.82802]
[1751399563613,0.82798,2415.2,2415.1,15.73504735]
[1751399563813,1.02901496,2415.2,2415.1,15.73504735]
[1751399564613,1.85699496,2415.2,2415.1,15.73504735]
[1751399564814,1.02901496,2415.2,2415.1,15.73504735]
[1751399565820,1.85699496,2415.2,2415.1,15.73504735]
[1751399567617,1.02901496,2415.2,2415.1,15.73504735]
[1751399567816,1.85699496,2415.2,2415.1,15.73504735]
[1751399568516,1.02901496,2415.2,2415.1,15.73504735]
[1751399568716,1.02901496,2415.2,2415.1,17.86754735]
[1751399569916,1.85699496,2415.2,2415.1,16.41544735]
[1751399570619,0.82798,2415.2,2415.1,16.41544735]
[1751399571121,0.82798,2415.2,2415.1,41.18604735]
[1751399571315,0.82805,2415.1,2415.0,38.11303]
[1751399573122,0.82805,2415.1,2415.0,37.285]
[1751399573319,0.82805,2415.1,2415.0,38.11305]
[1751399578222,0.82796,2415.3,2415.2,0.82795]
[1751399578525,1.85817571,2415.3,2415.2,29.34397735]
[1751399579321,1.03021571,2415.3,2415.2,29.34397735]
[1751399579521,1.85816571,2415.3,2415.2,29.34397735]
[1751399579826,1.03021571,2415.3,2415.2,29.34397735]
[1751399580020,1.85816571,2415.3,2415.2,29.34397735]
[1751399580222,1.03021571,2415.3,2415.2,29.34397735]
[1751399580423,1.85816571,2415.3,2415.2,29.34397735]
[1751399580728,1.03021571,2415.3,2415.2,29.34397735]
[1751399581127,1.85816571,2415.3,2415.2,29.34397735]
[1751399581322,1.03021571,2415.3,2415.2,29.34397735]
[1751399581524,0.6983,2415.4,2415.3,0.82795]
[1751399581829,1.72860264,2415.4,2415.3,0.82795]
[1751399582031,1.03030264,2415.4,2415.3,0.82795]
[1751399582728,1.03030264,2415.4,2415.3,2.19715]
[1751399584132,1.85821264,2415.4,2415.3,2.19715]
[1751399584631,1.03030264,2415.4,2415.3,2.19715]
[1751399584928,1.85821264,2415.4,2415.3,2.19715]
[1751399585332,1.03030264,2415.4,2415.3,2.19715]
[1751399587231,1.53204,2415.7,2415.6,0.82784]
[1751399587430,2.56273047,2415.7,2415.6,26.26384]
[1751399590534,2.56273047,2415.7,2415.6,25.436]
[1751399591034,2.56273047,2415.7,2415.6,26.26384]
[1751399592233,1.51077,2415.9,2415.6,26.26384]
[1751399592438,1.49307,2415.9,2415.8,0.82778]
[1751399592636,1.695074,2415.9,2415.8,26.25578]
[1751399592836,1.029774,2415.9,2415.8,26.25578]
[1751399593134,1.857514,2415.9,2415.8,26.25578]
[1751399594134,1.857514,2415.9,2415.8,25.428]
[1751399594441,1.857514,2415.9,2415.8,26.25578]
[1751399594639,1.857514,2415.9,2415.8,25.428]
[1751399595140,1.857514,2415.9,2415.8,26.25578]
[1751399597943,1.029774,2415.9,2415.8,26.25578]
[1751399598143,0.82766,2416.2,2416.1,0.82763]
[1751399598539,0.82766,2416.2,2415.7,0.7001]
[1751399598540,3.07202735,2416.2,2415.6,2.06954]
[1751399598842,2.99132,2416.1,2416.0,0.82771]
[1751399599943,0.82774,2416.0,2415.9,0.82772]
[1751399600143,1.51724,2416.0,2415.9,0.82772]
[1751399600339,1.51724,2416.0,2415.6,5.14162735]
[1751399600340,0.82784,2415.7,2415.6,0.82781]
[1751399600541,0.82786,2415.6,2415.5,0.82783]
[1751399600750,0.82791,2415.4,2415.3,12.64693]
[1751399601644,0.82791,2415.4,2415.3,11.819]
[1751399601845,5.22403735,2415.4,2415.3,11.819]
[1751399602043,2.15201,2415.4,2415.3,11.819]
[1751399602746,5.22403735,2415.4,2415.3,11.819]
[1751399604149,0.82795,2415.3,2415.2,59.628]
[1751399604447,2.15205,2415.3,2415.2,59.628]
[1751399604647,2.15205,2415.3,2415.1,0.828]
[1751399604648,1.3241,2415.3,2415.0,0.82802]
[1751399604846,0.82804,2415.1,2415.0,38.06502]
[1751399605743,0.82804,2415.1,2415.0,12.64802]
[1751399605949,0.82804,2415.1,2415.0,38.06402]
[1751399606343,0.82804,2415.1,2415.0,37.236]
[1751399606544,0.82804,2415.1,2415.0,38.06405]
[1751399607249,0.828,2415.2,2415.1,0.82798]
[1751399607552,0.828,2415.2,2415.1,3.90000735]
[1751399607753,0.82798,2415.3,2415.2,0.82795]
[1751399609847,0.82798,2415.2,2415.1,3.07202735]
[1751399610552,1.85399241,2415.2,2415.1,0.82802]
[1751399611452,1.85399241,2415.2,2415.0,37.9171]
[1751399611453,0.82802,2415.1,2415.0,38.74512]
[1751399611653,1.51332,2415.1,2415.0,37.9171]
[1751399611847,1.51332,2415.1,2415.0,38.74515]
[1751399612154,1.51332,2415.1,2415.0,38.06405]
[1751399612555,1.51332,2415.1,2415.0,37.236]
[1751399612853,1.51332,2415.1,2415.0,38.06405]
[1751399617758,1.51332,2415.1,2415.0,12.64805]
[1751399618052,3.07202735,2416.0,2415.0,12.64805]
[1751399618053,0.41922315,2416.2,2415.4,0.82787]
[1751399618256,2.52091859,2415.7,2415.6,3.07202735]
[1751399619961,0.82788,2415.5,2415.4,29.30791735]
[1751399620259,1.02560859,2415.5,2414.0,7.21389735]
[1751399620458,0.82807,2415.0,2414.9,0.82804]
[1751399621662,0.82806,2415.1,2415.0,0.82803]
[1751399621855,0.82806,2415.1,2415.0,26.23303]
[1751399622661,1.52219,2415.3,2415.2,0.82798]
[1751399623056,0.82801,2415.2,2415.1,0.82799]
[1751399623662,1.52217,2415.3,2415.2,0.82798]
[1751399623964,2.54804463,2415.3,2415.2,0.82798]
[1751399625063,2.54804463,2415.3,2415.2,3.90000735]
[1751399625858,1.02587463,2415.3,2415.2,41.11000735]
[1751399626058,1.02587463,2415.3,2415.2,42.54280735]
[1751399626864,1.85382463,2415.3,2415.2,42.54280735]
[1751399627165,0.82794,2415.4,2415.3,0.82795]
[1751399627362,0.6934,2415.6,2415.2,43.78475735]
[1751399627559,0.82787,2415.6,2415.5,3.89990735]
[1751399628162,0.82787,2415.6,2415.5,6.04800735]
[1751399628760,1.85477925,2415.6,2415.5,6.04800735]
[1751399629259,0.82784,2415.6,2415.5,6.04800735]
[1751399630368,0.82784,2415.6,2415.5,5.33270735]
[1751399632568,0.82781,2415.7,2415.6,0.82782]
[1751399632769,0.82779,2415.8,2415.7,0.82781]
[1751399632969,0.82779,2415.8,2415.7,3.89983735]
[1751399633171,0.82779,2415.8,2415.7,3.07202735]
[1751399633464,0.82781,2415.7,2415.6,25.395]
[1751399633663,1.55131,2415.7,2415.6,25.395]
[1751399634572,1.55131,2415.7,2415.6,26.22284]
[1751399635168,0.82788,2415.5,2415.4,4.62642735]
[1751399635472,0.82788,2415.5,2415.4,26.1205]
[1751399635666,0.82788,2415.5,2415.4,26.94841]
[1751399635863,0.82788,2415.5,2415.4,41.82543735]
[1751399637369,0.82795,2415.4,2415.3,0.82792]
[1751399637577,0.82795,2415.4,2415.3,38.02692]
[1751399637867,0.82795,2415.3,2415.2,0.82796]
[1751399638064,0.6753,2415.3,2415.2,37.197]
[1751399638272,1.50325,2415.3,2415.2,37.197]
[1751399638474,0.82802,2415.2,2415.1,11.807]
[1751399638671,0.82802,2415.2,2415.1,38.02499]
[1751399640177,0.82802,2415.2,2415.1,11.807]
[1751399640378,0.82802,2415.1,2415.0,13.32005]
[1751399640578,0.82802,2415.1,2415.0,38.70805]
[1751399641174,0.82808,2415.0,2414.9,0.82807]
[1751399641370,1.50118,2415.0,2414.9,38.02307]
[1751399642176,0.82801,2415.2,2415.1,0.82799]
[1751399642375,0.82801,2415.2,2415.1,26.21599]
[1751399642771,0.6731,2415.3,2415.1,25.388]
[1751399642974,0.82792,2415.4,2415.3,0.8279]
[1751399643179,0.82792,2415.4,2415.3,26.2139]
[1751399643481,1.02679073,2415.6,2415.5,0.82788]
[1751399643482,1.50097,2415.6,2415.5,0.82788]
[1751399643673,2.5276988,2415.6,2415.5,3.89990735]
[1751399644577,2.5276988,2415.6,2415.5,3.07202735]
[1751399644978,2.5276988,2415.6,2415.5,3.89990735]
[1751399645381,1.6998288,2415.6,2415.5,3.89990735]
[1751399645685,2.5276688,2415.6,2415.5,3.89990735]
[1751399646381,1.6998288,2415.6,2415.5,3.89990735]
[1751399646781,2.5276688,2415.6,2415.5,3.89990735]
[1751399646982,1.50094,2415.6,2415.5,3.89990735]
[1751399647183,0.82802,2415.1,2415.0,12.63502]
[1751399647378,3.76988503,2415.6,2415.1,0.828]
[1751399647379,0.82801,2415.2,2415.1,0.828]
[1751399647584,0.82802,2415.1,2415.0,11.807]
[1751399647783,0.82805,2415.0,2414.9,3.90008735]
[1751399647982,0.82805,2415.0,2414.9,41.08908735]
[1751399648383,0.82805,2415.0,2414.9,3.90008735]
[1751399648582,0.82805,2415.0,2414.9,41.08908735]
[1751399649086,0.82805,2415.0,2414.9,41.08808735]
[1751399649889,0.82808,2414.9,2414.8,0.82811]
[1751399650185,3.4287,2415.1,2414.5,64.36819289]
[1751399650484,0.82826,2414.4,2414.3,11.797]
[1751399650689,0.82826,2414.4,2414.3,38.00629]
[1751399650888,0.82826,2414.4,2414.3,37.178]
[1751399651286,0.82826,2414.4,2414.3,38.00629]
[1751399651478,0.82826,2414.4,2414.3,11.797]
[1751399651683,0.82836,2414.1,2413.9,7.19763024]
[1751399651879,0.82836,2414.1,2414.0,25.381]
[1751399652085,1.3828,2414.4,2414.0,0.82838]
[1751399652086,0.82835,2414.2,2414.0,0.82838]
[1751399652388,0.82839,2414.0,2413.8,96.804]
[1751399652584,0.82839,2414.0,2413.8,60.45544]
[1751399652789,0.82839,2414.0,2413.9,25.384]
[1751399653591,2.21118,2414.1,2413.9,26.21243]
[1751399654295,0.82839,2414.0,2413.9,25.384]
[1751399654497,2.21118,2414.1,2413.9,26.21243]
[1751399655596,0.82837,2414.1,2413.9,26.21242]
[1751399655996,0.82837,2414.1,2414.0,0.82839]
[1751399657095,0.723,2414.2,2413.9,25.384]
[1751399657393,0.82837,2414.1,2413.9,25.384]
[1751399657593,0.82837,2414.1,2414.0,0.82839]
[1751399657793,0.82837,2414.1,2413.9,25.384]
[1751399657794,0.82837,2414.1,2413.9,26.2124]
[1751399657997,0.82837,2414.1,2414.0,0.82839]
[1751399659492,0.82835,2414.2,2414.1,0.82836]
[1751399659695,0.82833,2414.2,2414.1,0.82835]
[1751399659898,0.82833,2414.2,2414.1,26.21335]
[1751399660294,0.82839,2414.0,2413.9,1.4421]
[1751399660490,0.82843,2413.9,2413.8,37.183]
[1751399660690,0.82843,2413.9,2413.8,38.01146]
[1751399661000,0.82842,2414.0,2413.9,0.82842]
[1751399662002,2.07078,2414.3,2413.8,37.183]
[1751399662003,0.82843,2413.9,2413.8,38.01144]
[1751399662304,0.82843,2413.9,2413.8,37.184]
[1751399663097,0.82843,2413.9,2413.8,12.62746]
[1751399663304,0.82843,2413.9,2413.8,37.183]
[1751399663605,0.82843,2413.9,2413.8,38.01146]
[1751399665503,0.82843,2413.9,2413.8,38.01346]
[1751399666707,1.51601,2414.0,2413.9,0.82843]
[1751399667801,0.6876,2414.0,2413.9,0.82843]
[1751399668106,0.82842,2414.0,2413.9,0.8284]
[1751399668907,2.07084,2414.2,2413.8,11.803]
[1751399668908,0.82843,2413.9,2413.8,11.803]
[1751399669106,0.82843,2413.9,2413.8,37.185]
[1751399669308,0.82843,2413.9,2413.8,38.01346]
[1751399669511,0.82843,2413.9,2413.8,12.63146]
[1751399669807,0.82843,2413.9,2413.8,38.01346]
[1751399670106,0.82843,2413.9,2413.8,37.185]
[1751399670303,5.0,2413.9,2412.4,59.656]
[1751399670607,5.0,2413.9,2413.1,0.82868]
[1751399670608,0.82868,2413.2,2413.1,0.82868]
[1751399670808,0.82863,2413.3,2413.2,0.82863]
[1751399671402,0.82868,2413.2,2413.1,0.82868]
[1751399671606,0.82866,2413.3,2413.2,0.82866]
[1751399672008,0.82862,2413.4,2413.3,0.82862]
[1751399672607,0.6558,2413.5,2413.4,0.8286]
[1751399672813,0.82848,2413.8,2413.7,0.8285]
[1751399673314,0.7179,2414.0,2413.9,0.82843]
[1751399673612,0.82837,2414.1,2414.0,0.82837]
[1751399673812,0.82837,2414.1,2414.0,3.90327792]
[1751399675114,0.82837,2414.1,2414.0,0.82837]
[1751399677916,0.82835,2414.2,2414.1,0.82834]
[1751399678518,0.82827,2414.4,2414.3,0.82825]
[1751399679518,0.82831,2414.3,2414.2,0.82831]
[1751399679718,0.82831,2414.3,2414.1,0.718]
[1751399679719,0.82828,2414.4,2414.3,0.82827]
[1751399680119,0.82831,2414.3,2414.2,0.8283]
[1751399680420,0.8283,2414.4,2414.3,0.82828]
[1751399680619,0.82824,2414.5,2414.4,0.82823]
[1751399680820,0.82827,2414.4,2414.3,0.82826]
[1751399681219,0.82825,2414.5,2414.4,0.82822]
[1751399682522,0.7179,2414.6,2414.2,11.796]
[1751399682523,0.82828,2414.4,2414.3,0.82827]
[1751399682824,1.85479401,2414.4,2414.3,0.82827]
[1751399683123,0.82825,2414.5,2414.4,0.82823]
[1751399683323,1.85474542,2414.5,2414.4,0.82823]
[1751399684120,1.02649542,2414.5,2414.4,0.82823]
[1751399685422,1.85471542,2414.5,2414.4,0.82823]
[1751399686022,1.02649542,2414.5,2414.2,1.3154]
[1751399686226,1.85478542,2414.4,2414.3,0.82827]
[1751399688828,1.85478542,2414.4,2414.3,0.82829]
[1751399690128,0.82829,2414.3,2414.2,12.6233]
[1751399690426,1.54611,2414.6,2414.5,0.82822]
[1751399690624,2.57182033,2414.6,2414.5,0.82822]
[1751399691431,0.82826,2414.5,2414.4,0.82823]
[1751399691728,1.85397033,2414.5,2414.4,0.82823]
[1751399694628,0.82828,2414.4,2414.3,0.82826]
[1751399696226,1.85577329,2414.4,2414.3,0.82826]
[1751399696428,3.07456355,2414.4,2413.9,0.6635]
[1751399696735,3.90293355,2414.2,2414.1,0.82833]
[1751399696927,0.82839,2414.1,2414.0,0.82837]
[1751399697124,0.7069,2414.1,2414.0,0.82837]
[1751399697425,0.82831,2414.3,2414.2,0.82832]
[1751399697928,0.82832,2414.2,2414.1,3.90289355]
[1751399698132,1.8559882,2414.2,2414.1,3.90289355]
[1751399698331,0.82832,2414.2,2414.1,3.90289355]
[1751399699733,0.82832,2414.3,2414.2,0.82829]
[1751399699923,1.85597806,2414.4,2414.3,0.82829]
[1751399700124,1.85597796,2414.4,2414.3,0.82829]
[1751399700337,9.10226151,2414.4,2413.7,0.6668]
[1751399700528,5.14577355,2413.8,2413.1,3.28665198]
[1751399700830,0.82877,2412.9,2412.8,3.28665198]
[1751399701031,3.07456355,2413.0,2412.5,3.28665198]
[1751399701229,1.4328,2412.9,2412.8,0.8288]
[1751399701534,0.8288,2412.8,2412.7,3.28665198]
[1751399702028,0.8288,2412.8,2412.7,0.82884]
[1751399702338,0.82882,2412.8,2412.7,0.82883]
[1751399702629,0.7068,2412.9,2412.8,0.8288]
[1751399702830,1.53559,2412.9,2412.7,3.28665198]
[1751399703135,1.53559,2412.9,2412.8,0.8288]
[1751399703529,0.7068,2412.9,2412.8,0.8288]
[1751399704435,2.1378,2413.4,2413.1,0.82868]
[1751399704636,1.69111037,2413.3,2413.1,0.82868]
[1751399704830,1.85428037,2413.2,2413.0,0.82872]
[1751399705031,1.49415,2413.3,2413.0,0.82872]
[1751399705232,1.0256236,2413.2,2413.0,0.82871]
[1751399705432,0.6655,2413.3,2413.2,0.82867]
[1751399705628,1.69034373,2413.3,2413.2,0.82867]
[1751399706030,0.6655,2413.3,2413.2,0.82867]
[1751399706336,1.4183,2413.8,2413.5,0.82855]
[1751399706535,0.82856,2413.5,2413.4,0.82858]
[1751399706731,0.82855,2413.6,2413.4,0.82858]
[1751399706937,1.51802,2413.7,2413.5,0.82856]
[1751399707140,1.51802,2413.7,2413.6,0.82853]
[1751399707441,1.51802,2413.7,2413.5,0.82854]
[1751399707735,0.6895,2413.7,2413.6,0.82853]
[1751399708543,0.82842,2414.0,2413.9,0.82843]
[1751399708739,1.49502,2414.0,2413.9,0.82843]
[1751399709042,0.82845,2413.9,2413.8,0.82846]
[1751399709342,0.82848,2413.8,2413.7,0.82847]
[1751399709540,0.8285,2413.7,2413.6,0.82851]
[1751399710535,0.7257,2413.9,2413.4,8.67637333]
[1751399710736,2.1705,2413.9,2413.4,9.99917333]
[1751399710935,1.55416,2413.9,2413.8,0.82846]
[1751399711532,0.82848,2413.8,2413.7,0.82848]
[1751399712037,0.7257,2413.9,2413.4,7.92768333]
[1751399712342,0.8285,2413.8,2413.7,0.82849]
[1751399712541,1.55415,2413.9,2413.8,0.82846]
[1751399712942,0.82848,2413.8,2413.7,0.82848]
[1751399713638,0.82848,2413.8,2413.4,9.33237333]
[1751399713639,1.55415,2413.9,2413.8,0.82846]
[1751399713844,0.6666,2414.0,2413.9,0.82843]
[1751399714544,1.49499,2414.0,2413.9,0.82843]
[1751399714745,0.6666,2414.0,2413.9,0.82843]
[1751399714944,0.82832,2414.3,2414.2,0.82832]
[1751399715139,0.82834,2414.2,2413.9,2.07107]
[1751399715344,0.82834,2414.2,2414.1,0.82833]
[1751399716250,0.82831,2414.3,2414.2,0.8283]
[1751399716646,0.82835,2414.2,2414.1,0.82833]
[1751399717144,0.82839,2414.0,2413.9,0.82839]
[1751399717348,0.82839,2414.1,2414.0,0.82838]
[1751399718043,0.82841,2414.0,2413.9,0.8284]
[1751399718244,0.82845,2413.9,2413.8,0.82843]
[1751399718445,0.82842,2414.0,2413.9,0.8284]
[1751399718749,1.49972,2414.0,2413.9,0.8284]
[1751399719348,0.82846,2413.9,2413.8,0.82844]
[1751399719951,0.6713,2414.0,2413.4,7.98124333]
[1751399720249,0.82849,2413.8,2413.7,0.82847]
[1751399721050,0.82856,2413.6,2413.5,0.82854]
[1751399721249,0.82856,2413.6,2413.5,12.63054]
[1751399722552,0.82853,2413.7,2413.6,0.82851]
[1751399722955,0.82853,2413.6,2413.5,12.63055]
[1751399723254,1.53193,2413.6,2413.5,11.802]
[1751399723848,0.82856,2413.5,2413.4,0.82859]
[1751399725052,0.82862,2413.4,2413.2,13.9647]
[1751399725249,0.82858,2413.5,2413.4,0.82856]
[1751399725450,0.7034,2413.6,2413.2,13.9647]
[1751399725652,0.82848,2413.8,2413.7,0.82846]
[1751399725849,1.54228,2413.8,2413.7,0.82846]
[1751399726258,0.7138,2413.8,2413.7,0.82846]
[1751399727250,1.54226,2413.8,2413.7,0.82846]
[1751399727660,0.7138,2413.8,2413.7,0.82846]
[1751399727959,1.54226,2413.8,2413.7,0.82846]
[1751399728460,2.56367676,2413.8,2413.7,0.82846]
[1751399728760,1.54226,2413.8,2413.7,0.82846]
[1751399729059,0.7138,2413.8,2413.7,0.82846]
[1751399729255,1.54226,2413.8,2413.7,0.82846]
[1751399729558,0.82852,2413.7,2413.5,1.3906]
[1751399729766,0.7138,2413.8,2413.5,0.82856]
[1751399729767,0.82853,2413.6,2413.5,0.82856]
[1751399730058,0.82853,2413.6,2413.5,12.63056]
[1751399730249,0.82859,2413.5,2413.4,0.82857]
[1751399730456,0.82859,2413.5,2413.4,12.63057]
[1751399730651,0.712,2413.7,2413.4,11.802]
[1751399730958,0.82852,2413.7,2413.6,0.8285]
[1751399731856,0.82856,2413.6,2413.5,0.82854]
[1751399732052,0.82855,2413.6,2413.5,0.82852]
[1751399732663,0.82856,2413.5,2413.4,12.63056]
[1751399732863,0.82854,2413.6,2413.5,0.82852]
[1751399734066,0.82856,2413.5,2413.4,0.82857]
[1751399734265,0.82856,2413.5,2413.2,2.78256]
[1751399734266,0.82865,2413.3,2413.2,0.82863]
[1751399734464,1.51982,2413.4,2413.3,0.82862]
[1751399734665,0.82866,2413.3,2413.2,0.82864]
[1751399734866,1.51981,2413.4,2413.3,0.82862]
[1751399735657,0.6912,2413.4,2413.3,0.82862]
[1751399736364,0.82876,2412.9,2412.8,3.28665198]
[1751399736566,2.1163,2413.3,2413.0,0.82871]
[1751399736765,2.1163,2413.3,2412.8,9.33338333]
[1751399736766,0.6611,2413.3,2412.8,9.33338333]